Workbook

Sheet Inhaltsverzeichnis
B1: Jahresbericht Telekommunikation 2025 der Bundesnetzagentur
B2: Marktentwicklung
B4: Außenumsatzerlöse auf dem Telekommunikationsmarkt
B5: Außenumsatzerlöse nach Segmenten
B6: Außenumsatzerlöse im Mobilfunk
B7: Investitionen in Sachanlagen auf dem Telekommunikationsmarkt
B8: Mitarbeitende auf dem Telekommunikationsmarkt
B9: Aktive Breitbandanschlüsse in Festnetzen
B10: Anteile an den Breitbandanschlüssen in Festnetzen
B11: Verteilung der vermarkteten Maximalbandbreiten im Download bei aktiven Festnetz-Breitbandanschlüssen
B12: Aktive DSL-Anschlüsse
B13: Aktive Breitbandanschlüsse über HFC
B14: Aktive Breitbandanschlüsse über FttH und FttB
B15: Verteilung der vermarkteten Maximalbandbreiten im Download bei aktiven Glasfaseranschlüssen
B16: Homes Passed, FttH Connected und Activated, FttB Connected und Activated
B17: Entwicklung Glasfaserausbau im Verhältnis Deutsche Telekom - Wettbewerber
B18: Entwicklung Glasfaserausbau (Top 3, Top 5, Top 10)
B19: Datenvolumen in Festnetzen
B20: Bündelprodukte in Festnetzen im Jahr 2025
B21: Sprachkommunikationszugänge
B22: Abgehende Gesprächsminuten in Festnetzen
B23: Nutzung und Verteilung aktiver SIM-Profile
B24: Datenvolumen im Mobilfunk
B25: Versendete Kurznachrichten per SMS
B26: Abgehender und ankommender Mobilfunk-Sprachverkehr
B27: Abgehende Gesprächsminuten in Festnetzen und im Mobilfunk
B28: International Roaming
B29: Funk-Basisstationen
B31: Disclaimer

Sheet Außenumsatz TK-Markt
A1: [ZURÜCK] | C1: Außenumsatzerlöse auf dem Telekommunikationsmarkt
C2: in Mrd. € | D2: 2015 | E2: 2016 | F2: 2017 | G2: 2018 | H2: 2019 | I2: 2020 | J2: 2021 | K2: 2022 | L2: 2023 | M2: 2024 | N2: 2025¹⁾
C3: gesamt | D3: 57.4 | E3: 56.9 | F3: 56.7 | G3: 57 | H3: 57.5 | I3: 57.2 | J3: 58.4 | K3: 59.2 | L3: 59.8 | M3: 61.3 | N3: 59.6
C4: Deutsche Telekom | D4: 25.1 | E4: 24.7 | F4: 24.6 | G4: 24.4 | H4: 24.6 | I4: 24.7 | J4: 25.1 | K4: 25.3 | L4: 25.7 | M4: 27.4 | N4: 26.3
C5: Wettbewerber | D5: 32.3 | E5: 32.2 | F5: 32.1 | G5: 32.6 | H5: 32.9 | I5: 32.5 | J5: 33.3 | K5: 33.9 | L5: 34.1 | M5: 33.9 | N5: 33.3
C6: 1) Prognosewerte

Sheet Außenumsatz Segmente
A1: [ZURÜCK] | C1: Außenumsatzerlöse nach Segmenten
D2: 2023 | F2: 2024 | H2: 2025¹⁾
D3: in Mrd. € | E3: in % | F3: in Mrd. € | G3: in % | H3: in Mrd. € | I3: in %
C4: Außenumsatzerlöse auf dem TK-Markt | D4: =SUM(D5:D7) -> 59.83 | E4: 100 | F4: 61.29 | G4: 100 | H4: 59.63 | I4: 100
C5: Außenumsatzerlöse über Festnetze | D5: 31.02 | E5: =D5/D4*100 -> 51.84689955 | F5: 31.33 | G5: =F5/F4*100 -> 51.11763746 | H5: 30.91 | I5: =H5/H4*100 -> 51.836324
C6: Außenumsatzerlöse über Mobilfunknetze | D6: 27.6 | E6: =D6/D4*100 -> 46.13070366 | F6: 27.48 | G6: =F6/F4*100 -> 44.83602545 | H6: 27.16 | I6: =H6/H4*100 -> 45.54754318
C7: sonstige Außenumsatzerlöse | D7: 1.21 | E7: =D7/D4*100 -> 2.022396791 | F7: 2.48 | G7: =F7/F4*100 -> 4.046337086 | H7: 1.56 | I7: =H7/H4*100 -> 2.616132819
C8: 1) Prognosewerte
C9: Abweichungen in Summenangaben sind rundungsbedingt.

Sheet Außenumsatz Mobilfunk
A1: [ZURÜCK] | C1: Außenumsatzerlöse im Mobilfunk
D2: 2023 | F2: 2024 | H2: 2025¹⁾
D3: in Mrd. € | E3: in % | F3: in Mrd. € | G3: in % | H3: in Mrd. € | I3: in %
C4: gesamt | D4: =SUM(D5:D6) -> 27.6 | E4: =SUM(E5:E8) -> 100 | F4: =SUM(F5:F6) -> 27.48 | G4: =SUM(G5:G8) -> 100 | H4: 27.16 | I4: =SUM(I5:I8) -> 100
C5: Netzbetreiber | D5: 22.75 | E5: =D5/D4*100 -> 82.42753623 | F5: 22.65 | G5: =F5/F4*100 -> 82.42358079 | H5: 22.3 | I5: =H5/H4*100 -> 82.10603829
C6: Diensteanbieter und MVNO | D6: 4.85 | E6: =D6/D4*100 -> 17.57246377 | F6: 4.83 | G6: =F6/F4*100 -> 17.57641921 | H6: 4.86 | I6: =H6/H4*100 -> 17.89396171
C7: 1) Prognosewerte

Sheet Investitionen TK-Markt
A1: [ZURÜCK] | C1: Investitionen in Sachanlagen auf dem Telekommunikationsmarkt
C2: in Mrd. € | D2: 2015 | E2: 2016 | F2: 2017 | G2: 2018 | H2: 2019 | I2: 2020 | J2: 2021 | K2: 2022 | L2: 2023 | M2: 2024 | N2: 2025¹⁾
C3: gesamt | D3: 8 | E3: 8.3 | F3: 8.5 | G3: 9.1 | H3: 9.8 | I3: 10.8 | J3: 11.5 | K3: 13.4 | L3: 14.9 | M3: 15.3 | N3: 15.3
C4: Deutsche Telekom²⁾ | D4: 3.9 | E4: 4.4 | F4: 4.3 | G4: 4.4 | H4: 4.4 | I4: 4.6 | J4: 4.5 | K4: 4.9 | L4: 5.4 | M4: 5.1 | N4: 5.5
C5: Wettbewerber (inkl. Kabel-TV-Anbieter) | D5: 4.1 | E5: 3.9 | F5: 4.2 | G5: 4.7 | H5: 5.4 | I5: 6.2 | J5: 7 | K5: 8.5 | L5: 9.5 | M5: 10.2 | N5: 9.8
C6: 1) Prognosewerte
C7: 2) Investitionen in Gemeinschaftsunternehmen (TK) anteilig angerechnet

Sheet Mitarbeitende
A1: [ZURÜCK] | C1: Mitarbeitende auf dem Telekommunikationsmarkt
C2: in Tsd. | D2: 2015 | E2: 2016 | F2: 2017 | G2: 2018 | H2: 2019 | I2: 2020 | J2: 2021 | K2: 2022 | L2: 2023 | M2: 2024 | N2: 2025¹⁾
C3: Deutsche Telekom²⁾ | D3: 110.4 | E3: 104.7 | F3: 101.9 | G3: 98.1 | H3: 94.1 | I3: 89 | J3: 85.2 | K3: 81.5 | L3: 78.7 | M3: 74.7 | N3: 71
C4: Wettbewerber | D4: 55.5 | E4: 54.9 | F4: 51.8 | G4: 49.8 | H4: 49.7 | I4: 50.8 | J4: 50.6 | K4: 51.5 | L4: 53.7 | M4: 53.3 | N4: 51.6
C5: gesamt | D5: 165.9 | E5: 159.6 | F5: 153.7 | G5: 147.9 | H5: 143.8 | I5: 139.8 | J5: 135.8 | K5: 133 | L5: 132.4 | M5: 128 | N5: 122.6
C6: 1) Prognosewerte
C7: 2) Mitarbeitende in Gemeinschaftsunternehmen (TK) anteilig angerechnet

Sheet Aktive BB-Anschlüsse Festnetz
A1: [ZURÜCK] | C1: Aktive Breitbandanschlüsse in Festnetzen
C2: in Mio. | D2: 2015 | E2: 2016 | F2: 2017 | G2: 2018 | H2: 2019 | I2: 2020 | J2: 2021 | K2: 2022 | L2: 2023 | M2: 2024 | N2: 2025
C3: gesamt | D3: 30.7 | E3: 32 | F3: 33.2 | G3: 34.2 | H3: 35.2 | I3: 36.2 | J3: 36.9 | K3: 37.5 | L3: 38.4 | M3: 38.6 | N3: 38.8
C4: DSL | D4: 23.508 | E4: 24 | F4: 24.7 | G4: 25 | H4: 25.3 | I4: 25.4 | J4: 25.4 | K4: 24.7 | L4: 24.5 | M4: 23.6 | N4: 22.7
C5: HFC | D5: 6.6 | E5: 7.2 | F5: 7.7 | G5: 8 | H5: 8.3 | I5: 8.7 | J5: 8.8 | K5: 8.7 | L5: 8.6 | M5: 8.5 | N5: 8.5
C6: FttH und FttB | D6: 0.449 | E6: 0.6 | F6: 0.8 | G6: 1.1 | H6: 1.5 | I6: 2 | J6: 2.6 | K6: 3.4 | L6: 4.3 | M6: 5.3 | N6: 6.4
C7: Stationäre drahtlose Breitbanddienste via LTE/5G | K7: 0.7 | L7: 0.9 | M7: 0.887 | N7: 0.8
C8: Festverbindungen, Richtfunk, Satellit u. Sonstige | D8: 0.088 | E8: 0.086 | F8: 0.085 | G8: 0.087 | H8: 0.083 | I8: 0.088 | J8: 0.086 | K8: 0.059 | L8: 0.087 | M8: 0.279 | N8: 0.278
C9: Abweichungen in Summenangaben sind rundungsbedingt

Sheet Anteile a.d. BB-Anschlüssen
A1: [ZURÜCK] | C1: Anteile an den Breitbandanschlüssen in Festnetzen
C2: in Prozent | D2: 2015 | E2: 2016 | F2: 2017 | G2: 2018 | H2: 2019 | I2: 2020 | J2: 2021 | K2: 2022 | L2: 2023 | M2: 2024 | N2: 2025
C3: Deutsche Telekom (direkte Endkunden) | D3: 41.2 | E3: 40.6 | F3: 39.7 | G3: 39.5 | H3: 39 | I3: 38.8 | J3: 39.1 | K3: 39.1 | L3: 39 | M3: 39.1 | N3: 38.8
C4: Wettbewerber | D4: 58.8 | E4: 59.4 | F4: 60.3 | G4: 60.5 | H4: 61 | I4: 61.2 | J4: 60.9 | K4: 60.9 | L4: 61 | M4: 60.9 | N4: 61.2

Sheet Verteilung Bandbreiten BB-Ansch
A1: [ZURÜCK] | C1: Verteilung der vermarkteten Maximalbandbreiten im Download bei aktiven Festnetz-Breitbandanschlüssen
C2: in Mio. | D2: 2023 | E2: 2024 | F2: 2025
C3: unter 10 Mbit/s | D3: 1.2 | E3: 0.8 | F3: 0.7
C4: 10 bis unter 30 Mbit/s | D4: 5.6 | E4: 5.1 | F4: 4.5
C5: 30 bis unter 100 Mbit/s | D5: 12.2 | E5: 11.2 | F5: 10
C6: 100 bis unter 300 Mbit/s | D6: 15 | E6: 16.3 | F6: 17.3
C7: 300 bis unter 500 Mbit/s | D7: 1.1 | E7: 1.3 | F7: 1.7
C8: 500 Mbit/s bis unter 1Gbit/s | D8: 1.1 | E8: 1.4 | F8: 1.6
C9: 1 Gbit/s und mehr | D9: 2.2 | E9: 2.5 | F9: 3

Sheet akt. DSL_Anschlüsse
A1: [ZURÜCK] | C1: Aktive DSL-Anschlüsse
C2: in Mio. | D2: 2015 | E2: 2016 | F2: 2017 | G2: 2018 | H2: 2019 | I2: 2020 | J2: 2021 | K2: 2022 | L2: 2023 | M2: 2024 | N2: 2025
C3: Deutsche Telekom (direkte Endkunden) | D3: 12.608 | E3: 12.862 | F3: 13.1 | G3: 13.3 | H3: 13.5 | I3: 13.7 | J3: 13.9 | K3: 13.9 | L3: 14 | M3: 13.7 | N3: 13.2
C4: Wettbewerber über Bitstrom- und Resalevorleistung der Deutschen Telekom¹⁾ | D4: 3.2 | E4: 4.3 | F4: 5.8 | G4: 6.721 | H4: 7.3 | I4: 7.7 | J4: 8 | K4: 8.1 | L4: 8.3 | M4: 8.4 | N4: 8
C5: Wettbewerber über TAL-Vorleistung der Deutschen Telekom, Vorleistungen alternativer Carrier sowie Eigenrealisierung | D5: 7.7 | E5: 6.8 | F5: 5.8 | G5: 5 | H5: 4.5 | I5: 4 | J5: 3.5 | K5: 2.7 | L5: 2.2 | M5: 1.5 | N5: 1.5
C6: gesamt | D6: =SUM(D3:D5) -> 23.508 | E6: 23.962 | F6: 24.7 | G6: 25.021 | H6: 25.3 | I6: 25.4 | J6: 25.4 | K6: 24.7 | L6: 24.5 | M6: 23.6 | N6: 22.7
C7: 1) Die Angaben zu Bitstrom und Resale enthalten bis zum Jahr 2023 einen geringen Anteil an Vorleistungen für Glasfaseranschlüsse.

Sheet akt. HFC Anschlüsse
A1: [ZURÜCK] | C1: Aktive Breitbandanschlüsse über HFC
C2: in Mio. | D2: 2015 | E2: 2016 | F2: 2017 | G2: 2018 | H2: 2019 | I2: 2020 | J2: 2021 | K2: 2022 | L2: 2023 | M2: 2024 | N2: 2025
C3: aktive Breitbandanschlüsse über HFC | D3: 6.6 | E3: 7.2 | F3: 7.7 | G3: 8 | H3: 8.3 | I3: 8.7 | J3: 8.8 | K3: 8.7 | L3: 8.6 | M3: 8.5 | N3: 8.5

Sheet akt. FttH- und FttB-Anschlüsse
A1: [ZURÜCK] | C1: Aktive Breitbandanschlüsse über FttH und FttB
D2: 2015 | E2: 2016 | F2: 2017 | G2: 2018 | H2: 2019 | I2: 2020 | J2: 2021 | K2: 2022 | L2: 2023 | M2: 2024 | N2: 2025
C3: FttB | D3: 0.3 | E3: 0.3 | F3: 0.4 | G3: 0.6 | H3: 0.7 | I3: 0.8 | J3: 0.9 | K3: 1 | L3: 1.1 | M3: 1.2 | N3: 1.2
C4: FttH | D4: 0.1 | E4: 0.3 | F4: 0.4 | G4: 0.5 | H4: 0.8 | I4: 1.2 | J4: 1.7 | K4: 2.4 | L4: 3.2 | M4: 4.1 | N4: 5.2
C5: gesamt | D5: =SUM(D3:D4) -> 0.4 | E5: 0.6 | F5: 0.8 | G5: 1.1 | H5: 1.5 | I5: 2 | J5: 2.6 | K5: 3.4 | L5: 4.3 | M5: 5.3 | N5: 6.4

Sheet Verteilung Bandbreiten Glasf.
A1: [ZURÜCK] | C1: Verteilung der vermarkteten Maximalbandbreiten im Download bei aktiven Glasfaseranschlüssen
C2: in Mio. | D2: 2023 | E2: 2024 | F2: 2025
C3: unter 10 Mbit/s | D3: 0.01 | E3: 0.01 | F3: 0.01
C4: 10 bis unter 30 Mbit/s | D4: 0.2 | E4: 0.2 | F4: 0.1
C5: 30 bis unter 100 Mbit/s | D5: 0.7 | E5: 0.7 | F5: 0.7
C6: 100 bis unter 300 Mbit/s | D6: 1.8 | E6: 2.2 | F6: 2.6
C7: 300 bis unter 500 Mbit/s | D7: 0.9 | E7: 1.1 | F7: 1.5
C8: 500 Mbit/s bis unter 1Gbit/s | D8: 0.4 | E8: 0.6 | F8: 0.8
C9: 1 Gbit/s und mehr | D9: 0.3 | E9: 0.5 | F9: 0.7

Sheet Glasfaser-Anschlüsse
A1: [ZURÜCK] | C1: Homes Passed, FttH Connected und Activated, FttB Connected und Activated
D2: 2023 | E2: 2024 | F2: 2025
C3: Homes Passed | D3: 17,9 Mio. | E3: 21,8 Mio. | F3: 27,1 Mio.
C4: davon aktive und nicht-aktive FttH-Endkundenanschlüsse (FttH Connected) | D4: 4,5 Mio. | E4: 5,5 Mio. | F4: 7,1 Mio.
C5: davon aktive FttH-Endkundenanschlüsse (FttH Activated) | D5: 3,2 Mio. | E5: 4,1 Mio. | F5: 5,2 Mio.
C6: davon aktive und nicht-aktive FttB-Endkundenanschlüsse (FttB Connected) | D6: 2,8 Mio. | E6: 3,1 Mio | F6: 3,3 Mio.
C7: davon aktive FttB-Endkundenanschlüsse (FttB Activated) | D7: 1,1 Mio. | E7: 1,2 Mio | F7: 1,2 Mio
C8: Take-up-Rate (FttH und FttB Activated bezogen auf Homes Passed) | D8: 0.24 | E8: 0.24 | F8: 0.24

Sheet Glasfaserrausbau DT Wettbew.
A1: [ZURÜCK] | C1: Entwicklung Glasfaserausbau im Verhältnis Deutsche Telekom - Wettbewerber
D2: 2020 | E2: 2021 | F2: 2022 | G2: 2023 | H2: 2024 | I2: 2025
C3: FttH und FttB Activated | D3: 2000000 | E3: 2600000 | F3: 3400000 | G3: 4300000 | H3: 5300000 | I3: 6400000
C4: Anteil Deutsche Telekom | D4: 0.19 | E4: 0.2 | F4: 0.21 | G4: 0.25 | H4: 0.28 | I4: 0.32
C5: Anteil Wettbewerber | D5: 0.81 | E5: 0.8 | F5: 0.79 | G5: 0.75 | H5: 0.72 | I5: 0.68
C6: FttH und FttB Connected | D6: 4500000 | E6: 5500000 | F6: 6400000 | G6: 7300000 | H6: 8600000 | I6: 10400000
C7: Anteil Deutsche Telekom | D7: 0.22 | E7: 0.24 | F7: 0.25 | G7: 0.24 | H7: 0.22 | I7: 0.27
C8: Anteil Wettbewerber | D8: 0.78 | E8: 0.76 | F8: 0.75 | G8: 0.76 | H8: 0.78 | I8: 0.73
C9: Homes Passed | D9: 6700000 | E9: 8900000 | F9: 13100000 | G9: 17900000 | H9: 21800000 | I9: 27100000
C10: Anteil Deutsche Telekom | D10: 0.27 | E10: 0.33 | F10: 0.37 | G10: 0.41 | H10: 0.43 | I10: 0.44
C11: Anteil Wettbewerber | D11: 0.73 | E11: 0.67 | F11: 0.63 | G11: 0.59 | H11: 0.57 | I11: 0.56

Sheet Glasfaserausbau Top 3-10
A1: [ZURÜCK] | C1: Entwicklung Glasfaserausbau (Top 3, Top 5, Top 10)
D2: 2020 | E2: 2021 | F2: 2022 | G2: 2023 | H2: 2024 | I2: 2025
C3: FttH und FttB Activated | D3: 2000000 | E3: 2600000 | F3: 3400000 | G3: 4300000 | H3: 5300000 | I3: 6400000
C4: Top 3 | D4: =879280/D3 -> 0.43964 | E4: =1133138/E3 -> 0.4358223077 | F4: =1529324.5/F3 -> 0.4498013235 | G4: =2018124/G3 -> 0.4693311628 | H4: =2535469/H3 -> 0.4783903774 | I4: 0.51
C5: Top 5 | D5: =1210039/D3 -> 0.6050195 | E5: =1485527/E3 -> 0.5713565385 | F5: =1902115.5/F3 -> 0.5594457353 | G5: =2447319/G3 -> 0.5691439535 | H5: =3019644/H3 -> 0.5697441509 | I5: 0.59
C6: Top 10 | D6: =1488878/D3 -> 0.744439 | E6: =1874471/E3 -> 0.7209503846 | F6: =2411684/F3 -> 0.7093188235 | G6: =3034955/G3 -> 0.7058034884 | H6: =3739445/H3 -> 0.7055556604 | I6: 0.71
C7: FttH und FttB Connected | D7: 4500000 | E7: 5500000 | F7: 6400000 | G7: 7300000 | H7: 8600000 | I7: 10400000
C8: Top 3 | D8: =2112882/D7 -> 0.4695293333 | E8: =2500961.5/E7 -> 0.4547202727 | F8: =2757141/F7 -> 0.4308032813 | G8: =3113516.5/G7 -> 0.4265091096 | H8: =3435798/H7 -> 0.3995113953 | I8: 0.43
C9: Top 5 | D9: =2739112/D7 -> 0.6086915556 | E9: =3366002.5/E7 -> 0.6120004545 | F9: =3653959/F7 -> 0.5709310937 | G9: =4101675.5/G7 -> 0.5618733562 | H9: =4522588/H7 -> 0.5258823256 | I9: 0.54
C10: Top 10 | D10: =3328882/D7 -> 0.7397515556 | E10: =4099244/E7 -> 0.7453170909 | F10: =4528934/F7 -> 0.7076459375 | G10: =5126621/G7 -> 0.7022768493 | H10: =5950209/H7 -> 0.6918847674 | I10: 0.7
C11: Homes Passed | D11: 6700000 | E11: 8900000 | F11: 13100000 | G11: 17900000 | H11: 21800000 | I11: 27100000
C12: Top 3 | D12: =3363989/D11 -> 0.5020879104 | E12: =4808246/E11 -> 0.5402523596 | F12: =7125398/F11 -> 0.5439235115 | G12: =10278878/G11 -> 0.5742389944 | H12: =12914190/H11 -> 0.5923940367 | I12: 0.59
C13: Top 5 | D13: =4252431/D11 -> 0.634691194 | E13: =5794787/E11 -> 0.6510996629 | F13: =8300532/F11 -> 0.6336283969 | G13: =11610004/G11 -> 0.6486035754 | H13: =14301322/H11 -> 0.656023945 | I13: 0.64
C14: Top 10 | D14: =5040938/D11 -> 0.752378806 | E14: =6807897/E11 -> 0.7649322472 | F14: =9592521/F11 -> 0.7322535115 | G14: =13093063/G11 -> 0.7314560335 | H14: =16497828/H11 -> 0.7567811009 | I14: 0.75

Sheet Datenvolumen Festnetz
A1: [ZURÜCK] | C1: Datenvolumen in Festnetzen
D2: 2015 | E2: 2016 | F2: 2017 | G2: 2018 | H2: 2019 | I2: 2020 | J2: 2021 | K2: 2022 | L2: 2023 | M2: 2024 | N2: 2025
C3: Gesamtvolumen Breitband in Mrd. GB (Ab 2024: inkl. Datenverkehre über stationäre drahtlose Breitbanddienste. IPTV-Nutzung über geschlossene Datennetze ab 2025 enthalten.) | D3: 17 | E3: 28 | F3: 39 | G3: 46 | H3: 60 | I3: 81 | J3: 100 | K3: 121 | L3: 132 | M3: 149 | N3: 175
C4: Datenvolumen im Durchschnitt pro Breitbandanschluss und Monat in GB | D4: 46 | E4: 73 | F4: 98 | G4: 112 | H4: 142 | I4: 186 | J4: 226 | K4: 274 | L4: 293 | M4: 322 | N4: 376

Sheet Bündelprodukte
A1: [ZURÜCK] | C1: Bündelprodukte in Festnetzen im Jahr 2025
C2: in Mio. | D2: 2 Dienste | E2: 3 Dienste | F2: 4 Dienste
C3: Deutsche Telekom | D3: 8.6 | E3: 5 | F3: 1.5
C4: Wettbewerber | D4: 16 | E4: 4.1 | F4: 0.094

Sheet Sprachkommunikationszugänge
A1: [ZURÜCK] | C1: Sprachkommunikationszugänge
C2: in Mio. | D2: 2018 | E2: 2019 | F2: 2020 | G2: 2021 | H2: 2022 | I2: 2023 | J2: 2024 | K2: 2025
C3: Wettbewerber | D3: 19.9 | E3: 20.5 | F3: 20.9 | G3: 21 | H3: 21.3 | I3: 21.4 | J3: 21.3 | K3: 21.2
C4: Deutsche Telekom | D4: 18.5 | E4: 17.8 | F4: 17.5 | G4: 17.5 | H4: 17.3 | I4: 17.3 | J4: 17.1 | K4: 16.7
C5: gesamt | D5: =SUM(D3:D4) -> 38.4 | E5: =SUM(E3:E4) -> 38.3 | F5: 38.4 | G5: 38.5 | H5: 38.6 | I5: 38.7 | J5: 38.4 | K5: 37.9

Sheet Gespr.min. Festnetz
A1: [ZURÜCK] | C1: Abgehende Gesprächsminuten in Festnetzen
C2: in Mrd. | D2: 2021 | E2: 2022 | F2: 2023 | G2: 2024 | H2: 2025
C3: Deutsche Telekom | D3: 47 | E3: 39 | F3: 33 | G3: 29 | H3: 25
C4: Wettbewerber (bis 2024: inkl. Call-by-Call-/Preselection-Minuten) | D4: 46 | E4: 41 | F4: 31 | G4: 28 | H4: 22
C5: gesamt | D5: =D3+D4 -> 93 | E5: =E3+E4 -> 80 | F5: =F3+F4 -> 64 | G5: =G3+G4 -> 57 | H5: =H3+H4 -> 47

Sheet SIM-Profile
A1: [ZURÜCK] | C1: Nutzung und Verteilung aktiver SIM-Profile
E3: 2023 | G3: 2024 | I3: 2025
E4: in Mio. | F4: in % | G4: in Mio. | H4: in % | I4: in Mio. | J4: in %
C5: insgesamt, ohne M2M | E5: 105.5 | G5: 109.2 | I5: 106.4
C6: Penetration (SIM-Profile / Einwohnerzahl1)) | E6: - | F6: 126 | G6: - | H6: 131 | I6: - | J6: 127
C7: Unternehmen: | D7: Netzbetreiber (MNO) | E7: 81 | F7: =(E7/$E$5)*100 -> 76.77725118 | G7: 86.6 | H7: =G7/($G$7+$G$8)*100 -> 79.3040293 | I7: 95.5 | J7: 90
D8: Diensteanbieter und MVNO | E8: 24.5 | F8: =(E8/$E$5)*100 -> 23.22274882 | G8: 22.6 | H8: =G8/($G$7+$G$8)*100 -> 20.6959707 | I8: 10.9 | J8: 10
C9: Vertragsart: | D9: Postpaid | E9: 75 | F9: 71.09004739 | G9: 79.7 | H9: =G9/($G$7+$G$8)*100 -> 72.98534799 | I9: 78.1 | J9: 73.40225564
D10: Prepaid | E10: 30.5 | F10: 28.90995261 | G10: 29.5 | H10: =G10/($G$7+$G$8)*100 -> 27.01465201 | I10: 28.3 | J10: 26.59774436
C11: SIM-Profile zur M2M-Nutzung | E11: 62,82) | F11: - | G11: 73.7 | H11: - | I11: 86.1 | J11: -
C12: LTE-Teilnehmer (ohne M2M) | E12: 88.2 | F12: - | G12: 89.7 | H12: - | I12: 90.1 | J12: -
C13: davon 5G-Teilnehmer (NSA) | E13: 19.7 | F13: - | G13: 37.4 | H13: - | I13: 57.9 | J13: -
C14: VoLTE-Nutzer | E14: 68.8 | F14: - | G14: 75 | H14: - | I14: 79.1 | J14: -
C15: 1) Quelle Einwohnerzahl: Statistisches Bundesamt
C16: 2) Verbesserte Auswertung inaktiver SIM-Profile zur M2M-Nutzung eines Netzbetreibers.

Sheet Datenvolumen Mobil
A1: [ZURÜCK] | C1: Datenvolumen im Mobilfunk
D2: 2014 | E2: 2015 | F2: 2016 | G2: 2017 | H2: 2018 | I2: 2019 | J2: 2020 | K2: 2021 | L2: 2022 | M2: 2023 | N2: 2024 | O2: 2025
C3: Datenvolumen Mobilfunk insgesamt in Mio. GB¹⁾ | D3: 395 | E3: 575 | F3: 913 | G3: 1388 | H3: 1993 | I3: 2757 | J3: 3972 | K3: 5457 | L3: 6714 | M3: 9118 | N3: 9592 | O3: 10860
C4: Datenvolumen im Durchschnitt pro aktivem SIM-Profil/Monat in GB | D4: 0.3196748615 | E4: 0.4576775894 | F4: 0.7040006851 | G4: 1.055779474 | H4: 1.528895866 | I4: 2.140460174 | J4: 3.085034042 | K4: 4.3 | L4: 5.3 | M4: 7.2 | N4: 7.44772166 | O4: 8.4
C5: 1) Ohne Datenverkehre über stationäre drahtlose Breitbanddienste seit Jahresende 2024

Sheet SMS
A1: [ZURÜCK] | C1: Versendete Kurznachrichten per SMS
C2: in Mrd. | D2: 2012 | E2: 2013 | F2: 2014 | G2: 2015 | H2: 2016 | I2: 2017 | J2: 2018 | K2: 2019 | L2: 2020 | M2: 2021 | N2: 2022 | O2: 2023 | P2: 2024 | Q2: 2025
C3: versendete SMS | D3: 59.8 | E3: 37.9 | F3: 22.3 | G3: 16.6 | H3: 12.7 | I3: 10.3 | J3: 8.9 | K3: 7.9 | L3: 7 | M3: 7.8 | N3: 5.8 | O3: 5.3 | P3: 5.2 | Q3: 2.9

Sheet Mobilfunksprachver.
A1: [ZURÜCK] | C1: Abgehender und ankommender Mobilfunk-Sprachverkehr
C3: in Mrd. Min. | D3: 2023 | E3: 2024 | F3: 2025
C4: aus Mobilfunknetzen abgehender Verkehr | D4: 153.49 | E4: 147.8 | F4: 131.57
C5: in nationale Festnetze | D5: 30.7 | E5: 28.89 | F5: 28.52
C6: in das eigene Mobilfunknetz | D6: 65.37 | E6: 62.56 | F6: 52.71
C7: in fremde nationale Mobilfunknetze | D7: 53.73 | E7: 53.41 | F7: 48.04
C8: in ausländische Telefonnetze (fest/mobil) | D8: 1.74 | E8: 1.55 | F8: 1.28
C9: sonstige Verkehre | D9: 1.95 | E9: 1.39 | F9: 1.02
C10: in Mobilfunknetzen ankommender Verkehr | D10: 133.68 | E10: 129.86 | F10: 115.2
C11: aus nationalen Festnetzen | D11: 11.23 | E11: 9.92 | F11: 8.62
C12: aus dem eigenen Mobilfunknetz | D12: 63.52 | E12: 60.08 | F12: 49.68
C13: aus fremden nationalen Mobilfunknetzen | D13: 56.08 | E13: 56.35 | F13: 55.23
C14: aus ausländischen Telefonnetzen (fest/mobil) | D14: 2.14 | E14: 1.66 | F14: 1.05
C15: sonstige Verkehre | D15: 0.71 | E15: 1.85 | F15: 0.62

Sheet Gespr.min. Fest-Mobil
A1: [ZURÜCK] | C1: Abgehende Gesprächsminuten in Festnetzen und im Mobilfunk
C2: in Mrd. Min. | D2: 2018 | E2: 2019 | F2: 2020 | G2: 2021 | H2: 2022 | I2: 2023 | J2: 2024 | K2: 2025
C3: Festnetz | D3: 106 | E3: 94 | F3: 104 | G3: 93 | H3: 80 | I3: 64 | J3: 57 | K3: 47
C4: Mobilfunk | D4: 118.5 | E4: 127 | F4: 155 | G4: 163 | H4: 159 | I4: 154 | J4: 148 | K4: 132

Sheet Inter. Roaming
A1: [ZURÜCK] | C1: International Roaming
C3: in Mio. | D3: 2023 | E3: 2024 | F3: 2025
C4: im Ausland generierter Datenverkehr (GB) | D4: 347.4 | E4: 429 | F4: 457.7
C5: im Ausland abgehende Verbindungsminuten | D5: 3422 | E5: 3246 | F5: 2594
C6: im Ausland versendete SMS | D6: 212 | E6: 150 | F6: 96

Sheet Funk-Basisstationen
A1: [ZURÜCK] | C1: Funk-Basisstationen
D2: 2023 | F2: 2024 | H2: 2025
E3: in % | G3: in % | I3: in %
C4: gesamt | D4: 214677 | E4: 100 | F4: 222474 | G4: 100 | H4: 238820 | I4: 100
C5: 5G | D5: 49571 | E5: 23.09096922 | F5: 56558 | G5: 25.42229654 | H5: 67272 | I5: 28.1684951
C6: LTE/4G | D6: 87905 | E6: 40.94756308 | F6: 88373 | G6: 39.72284402 | H6: 92036 | I6: 38.5378109
C7: GSM/2G | D7: 77201 | E7: 35.96146769 | F7: 77543 | G7: 34.85485944 | H7: 79512 | I7: 33.293694

Sheet Disclaimer
A1: [ZURÜCK]
C2: Disclaimer
C4: Datennutzung
C6: Die hier veröffentlichten Daten gelten als für die Öffentlichkeit zur freien Verfügung und Verwendung bereitgestellt.
C7: Hierfür können die Daten kostenfrei heruntergeladen und gespeichert werden.
C8: Weitere Informationen über den Telekommunikationsbereich und die hier veröffentlichten Daten erhalten Sie im
C9: Jahresbericht 2025.
C11: Marktdaten können kostenfrei verwendet werden
C13: Die Bundesnetzagentur ist bestrebt, eine größtmögliche Nutzung der Daten zu ermöglichen.
C14: Daher werden alle Marktdaten, die in diesem Bereich veröffentlicht werden, unter einer
C15: Creative Commons Namensnennung 4.0 International Lizenz angeboten.
C19: Heruntergeladene Marktdaten dürfen Sie
C21: - Teilen - die Daten dürfen Sie unter Nennung der Quelle in beliebigen Medien und Formaten teilen und vervielfältigen.
C22: Als Namensnennung ist "Bundesnetzagentur" zu verwenden.
C24: - Bearbeiten - heruntergeladene Daten dürfen in Teilen genutzt, zusammengefügt und verändert werden.
C26: Weitere Informationen zur Creative-Common-Lizenz finden sich auf der Webseite
C27: creativecommons.org.
C29: Hohe Datenqualität
C30: Die Datenqualität ist ein entscheidender Aspekt. Die Bundesnetzagentur bezieht die Daten direkt von den Unternehmen.
C31: Sie steht dabei in stetigem Austausch mit den Datenlieferanten, um die Datenqualität kontinuierlich zu verbessern.
C32: Eine Haftung der Bundesnetzagentur für die Richtigkeit und Vollständigkeit der Daten wird ausgeschlossen.
